Cogmind - Beta 17 @@@ ROGUE MODE // 2026.07.05 @ 15:35:09 Player: Figgis Result: Self-destructed Performance ------------- Evolutions (2) 1000 Regions Visited (5) 1000 Robots Destroyed (51) 255 Value Destroyed (1243) 1243 Prototype IDs (2) 40 Alien Tech Used (0) 0 Bonus (0) 0 TOTAL SCORE: 3538 Bonus ------- None Cogmind --------- Core Integrity 381/550 Matter 225/300 Energy 238/240 System Corruption 0% Temperature Cool (0) Movement Walking (260) Ox2 Location -8/Materials Parts ------- > --- POWER (1) -------- Nuclear Core > --- PROPULSION (4) --- Advanced Treads Aluminum Leg Aluminum Leg > --- UTILITY (4) ------ High-capacity Storage Unit Visual Processing Unit > --- WEAPON (2) ------- Improved Assault Rifle Axe > --- INVENTORY (20) --- Nuclear Core Improved Heat Sink Disposable Heat Sink Advanced Weight Redist. System Advanced Weight Redist. System Experimental Sensor Array Core Shielding Hacking Suite Beam Rifle Improved Assault Rifle Improved Assault Rifle Improved Light Cannon EMP Blaster Mining Laser Peak State ------------ > --- POWER ------------ Nuclear Core > --- PROPULSION ------- Advanced Treads Aluminum Leg Aluminum Leg > --- UTILITY ---------- High-capacity Storage Unit Visual Processing Unit > --- WEAPON ----------- Improved Assault Rifle Improved Assault Rifle > --- INVENTORY -------- Nuclear Core Improved Heat Sink Disposable Heat Sink Advanced Weight Redist. System Advanced Weight Redist. System Experimental Sensor Array Core Shielding Hacking Suite Beam Rifle Improved Assault Rifle Improved Light Cannon EMP Blaster Mining Laser Axe [Rating: 21] Favorites ----------- Power Cooled Ion Engine Engine Cooled Ion Engine Power Core Nuclear Core Propulsion Light Treads Treads Light Treads Leg Aluminum Leg Utility High-capacity Storage Unit Storage High-capacity Storage Unit Processor Visual Processing Unit Weapon Assault Rifle Energy Gun Small Laser Ballistic Gun Assault Rifle Ballistic Cannon Improved Light Cannon Launcher Rocket Launcher Slashing Weapon Axe Build | -11 -10 -10 -9 -9 -8 ------- Run | Yrd Mat Min Mat Min Mat Slots Evolved 4 | . . . 2 . 2 Power . | . . . . . . Propulsion 2 | . . . 1 . 1 Utility 2 | . . . 1 . 1 Weapon . | . . . . . . Parts Attached 37 | 4 8 4 15 4 2 Power 6 | . 2 . 3 1 . Engine 4 | . 2 . 2 . . Core 2 | . . . 1 1 . Reactor . | . . . . . . Propulsion 15 | 2 3 1 6 2 1 Treads 13 | 2 3 1 6 . 1 Leg 2 | . . . . 2 . Wheel . | . . . . . . Hover . | . . . . . . Flight . | . . . . . . Utility 4 | 1 1 1 1 . . Device . | . . . . . . Storage 2 | 1 1 . . . . Processor 2 | . . 1 1 . . Hackware . | . . . . . . Protection . | . . . . . . Artifact . | . . . . . . Weapon 12 | 1 2 2 5 1 1 Energy Gun 2 | 1 . 1 . . . Energy Cannon . | . . . . . . Ballistic Gun 5 | . 2 . 1 1 1 Ballistic Cannon 1 | . . . 1 . . Launcher 2 | . . 1 1 . . Special Weapon . | . . . . . . Impact Weapon . | . . . . . . Slashing Weapon 2 | . . . 2 . . Piercing Weapon . | . . . . . . Special Melee Weapon . | . . . . . . Unidentified Prototypes 2 | . 1 . 1 . . Parts Lost 22 | . . 7 8 7 . Power 3 | . . 1 1 1 . Propulsion 12 | . . 2 5 5 . Utility 1 | . . . 1 . . Weapon 6 | . . 4 1 1 . Highest Loss Streak 7 | . . 7 3 6 . To Critical Strikes . | . . . . . . Average Backups 12 | 3 7 12 14 14 14 Power 2 | 1 3 3 2 1 1 Propulsion 3 | . 2 5 3 . . Utility 2 | . . . 4 6 7 Weapon 3 | . 1 3 4 6 6 Tool/Special . | . . . . . . Unused Backups 12 | . 3 . . . 9 Power 4 | . 3 . . . 1 Propulsion . | . . . . . . Utility 6 | . . . . . 6 Weapon 2 | . . . . . 2 Tool/Special . | . . . . . . Average Slot Usage (%) 87 | . 81 98 89 70 65 Engine 9 | . 12 13 8 . . Core 1 | . . . . 9 9 Treads 26 | . 28 28 31 15 2 Leg 1 | . . . . 2 18 Storage 11 | . 11 14 11 11 9 Processor 11 | . . 13 17 11 9 Ballistic Gun 14 | . 24 26 . 15 16 Ballistic Cannon 1 | . . . 3 . . Launcher 1 | . . . 4 . . Slashing Weapon 5 | . . . 13 4 1 Peak Build Rating 21 | 3 12 14 20 20 21 Average Rating 14 | 1 8 13 17 16 18 On Entrance 10 | . 3 12 8 20 18 Avg Prop Armor Cover (%) 25 | 34 26 . . . 10 Naked Turns . | . . . . . . Heaviest Build 56 | 1 52 52 56 53 53 Greatest Support 63 | 3 46 46 63 63 20 Greatest Overweight (x) 17 | . 1 1 1 17 2 Average Overweight (x) . | . . . . 1 2 Largest Inventory Capacity 20 | 8 20 20 20 20 20 Average Capacity 18 | 5 14 20 20 20 20 Most Carried 19 | 5 12 14 19 17 15 Average Carried 12 | 3 7 12 14 14 14 Final Capacity 20 | 5 20 20 20 20 20 Final Carried 17 | 5 12 9 17 14 14 Class Distribution -------------------- 100% | Mutant Dominant Class ---------------- Mutant | -10/Materials Mutant | -10/Mines Mutant | -9/Materials Mutant | -9/Mines Mutant | -8/Materials Resources | -11 -10 -10 -9 -9 -8 ----------- Run | Yrd Mat Min Mat Min Mat Matter Collected 835 | 240 176 30 283 106 . Remotely . | . . . . . . Salvage Created 1488 | . 328 . 880 234 46 Parts 119 | . 39 . 60 18 2 Haulers Intercepted . | . . . . . . Recyclers Shooed 1 | . . 1 . . . Parts Field Recycled . | . . . . . . Retrieved Matter . | . . . . . . Parts Self-Destructed . | . . . . . . Prevented . | . . . . . . Parts Restored . | . . . . . . Kills | -11 -10 -10 -9 -9 -8 ------- Run | Yrd Mat Min Mat Min Mat Combat Hostiles Destroyed 46 | . 13 . 23 9 1 Melee 20 | . . . 16 4 . Guns 19 | . 13 . . 5 1 Cannons 6 | . . . 6 . . AOE 1 | . . . 1 . . Classes Destroyed 8 | . 2 . 6 . . Worker 2 | . . . 1 1 . Builder 1 | . . . 1 . . Operator 1 | . . . 1 . . Watcher 1 | . . . 1 . . Swarmer 20 | . 8 . 6 6 . Grunt 20 | . 5 . 11 3 1 Duelist 1 | . . . 1 . . Sentry 5 | . . . 5 . . Best Kill Streak 6 | . 5 . 6 6 1 Combat Bots Only 5 | . 5 . 5 5 1 Max Kills in Single Turn 3 | . 2 . 3 1 1 Gunslinging . | . . . . . . Exploded 1 | . . . 1 . . Melee 1 | . . . 1 1 . Uniques/NPCs Destroyed . | . . . . . . Combat | -11 -10 -10 -9 -9 -8 -------- Run | Yrd Mat Min Mat Min Mat Hostile Shots Fired 312 | . 41 21 181 62 7 Missed 68 | . 14 1 40 12 1 Hits 244 | . 27 20 141 50 6 Melee 7 | . . . 7 . . Projectile 237 | . 27 20 134 50 6 AOE 20 | . . 20 . . . Critical Strikes 6 | . . . 6 . . Damage Taken 3677 | . 283 872 1742 434 346 Core 763 | . 50 170 286 88 169 Absorbed by Shields . | . . . . . . Core Remaining (%) 39 | 100 . 12 . 6 . Volleys Fired 74 | . 28 9 26 10 1 Largest 2 | . 2 2 2 2 2 Hottest 66 | . 60 45 66 46 46 Shots Fired 114 | . 54 10 28 20 2 Gun 85 | . 54 9 . 20 2 Cannon 26 | . . . 26 . . Launcher 3 | . . 1 2 . . Special . | . . . . . . Kinetic 89 | . 36 5 26 20 2 Thermal 20 | . 18 2 . . . Explosive 1 | . . 1 . . . Electromagnetic 4 | . . 2 2 . . Robot Hit Streak 10 | . 8 4 5 10 4 Robot Miss Streak 5 | . 5 2 2 1 . Penetration Max . | . . . . . . Secondary Targets . | . . . . . . Shots Hit Robots 129 | . 33 6 67 20 3 Core Hits 63 | . 19 4 27 11 2 Critical Kills . | . . . . . . Critical Parts Destroyed 1 | . . . . 1 . Critical Strikes 10 | . . . 8 2 . Destroy 1 | . . . . 1 . Sever 9 | . . . 8 1 . Melee Attacks 87 | . . . 71 9 7 Impact . | . . . . . . Slashing 87 | . . . 71 9 7 Piercing . | . . . . . . Sneak Attacks 5 | . . . 4 1 . Combat Hostiles 1 | . . . . 1 . Follow-up Attacks 10 | . . . 10 . . Damage Inflicted 3367 | . 432 93 2276 496 70 Guns 771 | . 432 60 . 243 36 Cannons 414 | . . . 414 . . Explosions 93 | . . 33 60 . . Melee 2089 | . . . 1802 253 34 Ramming . | . . . . . . Kinetic 1008 | . 291 24 414 243 36 Thermal 163 | . 141 22 . . . Explosive 33 | . . 33 . . . Electromagnetic 74 | . . 14 60 . . Impact . | . . . . . . Slashing 2089 | . . . 1802 253 34 Piercing . | . . . . . . Highest Corruption . | . . . . . . Average Corruption . | . . . . . . Corruption Purged . | . . . . . . Corruption Blocked . | . . . . . . Overload Shots . | . . . . . . Overflow Damage 109 | . . . 85 24 . Projectiles 6 | . . . 6 . . Explosions . | . . . . . . Melee 103 | . . . 79 24 . Knockbacks 7 | . . . 7 . . Impact . | . . . . . . Kinetic 6 | . . . 6 . . Secondary 1 | . . . 1 . . Self-Inflicted Damage 33 | . . 33 . . . Shots 1 | . . 1 . . . Rammed 1 | . 1 . . . . Targets Rammed 1 | . 1 . . . . Kicked . | . . . . . . Crushed . | . . . . . . Highest Temperature 57 | . 57 . 18 . . Average Temperature 25 | . 27 . 9 . . Received Heat Transfer 759 | . 105 . 552 48 54 Siege Activations . | . . . . . . Martial Activations . | . . . . . . Shielding Activations . | . . . . . . Robots Disrupted . | . . . . . . Combat Hostiles . | . . . . . . Robots Corrupted . | . . . . . . Combat Hostiles . | . . . . . . Parts Fried 1 | . . . 1 . . Impact Corruptions . | . . . . . . Robots Melted . | . . . . . . Combat Hostiles . | . . . . . . Parts Melted . | . . . . . . Heat Transferred 375 | . 325 50 . . . Parts Sabotaged . | . . . . . . Parts Stolen . | . . . . . . Parts Stripped . | . . . . . . Power Chain Reactions . | . . . . . . Alert | -11 -10 -10 -9 -9 -8 ------- Run | Yrd Mat Min Mat Min Mat Maximum Alert Level 1 | . . . 1 . . Low Security (%) 98 | 100 100 100 94 100 100 Level 1 1 | . . . 5 . . Level 2 . | . . . . . . Level 3 . | . . . . . . Level 4 . | . . . . . . Level 5 . | . . . . . . High Security . | . . . . . . Max Security . | . . . . . . Peak Influence 233 | . 198 46 233 177 61 Initial 82 | . . 46 . 82 61 Average 62 | . 108 3 80 111 27 Influence Increases 1290 | . 369 1 656 235 29 Destroy 0b10 Robot/C 920 | . 260 . 460 180 20 Destroy 0b10 Robot/NC 25 | . . . 20 5 . Destroy Leader 182 | . 50 . 112 20 . Successful Hack 36 | . 11 . 18 . 7 Destroy Structure 7 | . 3 1 1 . 2 Lose Combat Pursuer 120 | . 45 . 45 30 . Influence Decreases 1269 | . 250 120 445 289 165 Entered New Map 298 | . . 73 . 129 96 Time Decay 831 | . 250 47 375 90 69 Lost Part 140 | . . . 70 70 . Squads Dispatched 3 | . 1 . 2 . . Investigation 1 | . . . 1 . . Extermination . | . . . . . . Reinforcement 2 | . 1 . 1 . . Assault . | . . . . . . Garrison . | . . . . . . Intercept . | . . . . . . Searches Triggered . | . . . . . . Construction Impeded . | . . . . . . Haulers Reinforced . | . . . . . . Active Scanning Responses . | . . . . . . Cargo Convoy Interrupts . | . . . . . . Stealth | -11 -10 -10 -9 -9 -8 --------- Run | Yrd Mat Min Mat Min Mat Distress Signals 7 | . 2 . 5 . . Communications Jammed . | . . . . . . Distress Signals . | . . . . . . Times Spotted 68 | . 21 2 33 9 3 Peak Tracking Total 7 | . 5 2 7 4 4 Tactical Retreats 6 | . 3 . 2 1 . Traps | -11 -10 -10 -9 -9 -8 ------- Run | Yrd Mat Min Mat Min Mat Traps Triggered 1 | . . . 1 . . Indirectly . | . . . . . . Trap Hack Attempts . | . . . . . . Triggered . | . . . . . . Disarmed . | . . . . . . Reprogrammed . | . . . . . . Reused . | . . . . . . Traps Extracted . | . . . . . . Installed . | . . . . . . Triggered . | . . . . . . Machines | -11 -10 -10 -9 -9 -8 ---------- Run | Yrd Mat Min Mat Min Mat Machines Disabled . | . . . . . . Max in Single Turn . | . . . . . . Machines Repaired . | . . . . . . Machines Dismantled . | . . . . . . Machines Sabotaged . | . . . . . . Overloaded Fab Kills . | . . . . . . Hacking | -11 -10 -10 -9 -9 -8 --------- Run | Yrd Mat Min Mat Min Mat Machines Accessed 7 | . 1 . 5 . 1 Terminals 6 | . 1 . 4 . 1 Fabricators . | . . . . . . Repair Stations . | . . . . . . Recycling Units . | . . . . . . Scanalyzers 1 | . . . 1 . . Garrison Access . | . . . . . . Total Hacks 22 | . 3 . 17 . 2 Successful 10 | . 2 . 7 . 1 Failed 12 | . 1 . 10 . 1 Catastrophic 3 | . 1 . 2 . . Database Lockouts . | . . . . . . Manual 3 | . . . 3 . . Terminals 18 | . 3 . 13 . 2 Fabricators . | . . . . . . Repair Stations . | . . . . . . Recycling Units . | . . . . . . Scanalyzers 4 | . . . 4 . . Garrison Access . | . . . . . . Terminal Hacks 7 | . 2 . 4 . 1 Branch Access Points 2 | . 1 . 1 . . Locate Traps 2 | . 1 . 1 . . Registered Components 1 | . . . . . 1 Zone Layout 2 | . . . 2 . . Fabricator Hacks . | . . . . . . Repair Station Hacks . | . . . . . . Recycling Unit Hacks . | . . . . . . Scanalyzer 3 | . . . 3 . . Retrieve Study 3 | . . . 3 . . Garrison Access Hacks . | . . . . . . Unauthorized Hacks . | . . . . . . Terminals . | . . . . . . Fabricators . | . . . . . . Repair Stations . | . . . . . . Recycling Units . | . . . . . . Scanalyzers . | . . . . . . Garrison Access . | . . . . . . Data Cores Recovered . | . . . . . . Used . | . . . . . . Hacking Detections 4 | . 1 . 3 . . Full Trace Events . | . . . . . . Feedback Events . | . . . . . . Feedback Blocked . | . . . . . . Robot Schematics Acquired . | . . . . . . Robots Built . | . . . . . . Authchips . | . . . . . . Time . | . . . . . . Total Robot Build Rating . | . . . . . . Part Schematics Acquired . | . . . . . . Parts Built . | . . . . . . Authchips . | . . . . . . Time . | . . . . . . Total Part Build Rating . | . . . . . . Part Studies Acquired 2 | . . . 2 . . Parts Repaired . | . . . . . . Time . | . . . . . . Parts Recycled . | . . . . . . Recycled Matter . | . . . . . . Retrieved Matter . | . . . . . . Retrieved Components . | . . . . . . Parts Scanalyzed . | . . . . . . Part Schematics Acquired . | . . . . . . Parts Damaged . | . . . . . . Bothacking | -11 -10 -10 -9 -9 -8 ------------ Run | Yrd Mat Min Mat Min Mat Used RIF Installer . | . . . . . . Robots Hacked . | . . . . . . Non-combat . | . . . . . . Combat . | . . . . . . Robot Hacks Applied . | . . . . . . Relay Couplers Released . | . . . . . . Fabnet Peak Effective % . | . . . . . . Robots Rewired . | . . . . . . Allies Hacked . | . . . . . . Hacks Repelled . | . . . . . . Allies | -11 -10 -10 -9 -9 -8 -------- Run | Yrd Mat Min Mat Min Mat Total Allies . | . . . . . . Largest Group . | . . . . . . Highest-Rated Group . | . . . . . . Highest-Rated Ally . | . . . . . . Total Orders . | . . . . . . Ally Attacks . | . . . . . . Total Damage . | . . . . . . Kills . | . . . . . . Allies Corrupted . | . . . . . . Allies Melted . | . . . . . . Intel | -11 -10 -10 -9 -9 -8 ------- Run | Yrd Mat Min Mat Min Mat Active Infowar (turns) 1445 | . . . 1068 198 179 Optics 1445 | . . . 1068 198 179 Robot Analysis Total . | . . . . . . Derelict Logs Recovered 4 | . . 2 . 2 . Drone Launches . | . . . . . . Drone Recoveries . | . . . . . . Exploration | -11 -10 -10 -9 -9 -8 ------------- Run | Yrd Mat Min Mat Min Mat Turns Passed 2906 | 31 591 816 1091 198 179 Spaces Moved 1177 | 38 238 323 464 57 57 Core 62 | 38 23 . . 1 . Treads 1048 | . 215 323 464 46 . Legs 67 | . . . . 10 57 Wheels . | . . . . . . Hover . | . . . . . . Flight . | . . . . . . Fastest Speed 50 | 50 50 160 160 160 260 Average Speed 193 | 50 192 239 161 230 260 Slowest Speed 900 | 50 240 240 200 900 260 Overloaded Moves . | . . . . . . Propulsion Burnouts . | . . . . . . Robots Hopped . | . . . . . . Potential Cave-ins 1 | . . . . . 1 Cave-ins Triggered 1 | . . . . . 1 Exploration Rate (%) 29 | 3 39 58 46 23 10 Regions Visited 5 Branch Regions 2 Pre-discovered Areas . | . . . . . . Known Exits Taken 3 | . 1 . 1 1 . Unknown Exits Taken 2 | 1 . 1 . . . Scrap Searched 1 | . . 1 . . . Spaces Dug 5 | . . . 1 . 4 Terrain Destroyed 6 | . . 1 1 . 4 Melee 5 | . . . 1 . 4 Projectile . | . . . . . . AOE 1 | . . 1 . . . Terrain Rammed . | . . . . . . Walls Destroyed . | . . . . . . Machines Disabled . | . . . . . . Actions | -11 -10 -10 -9 -9 -8 --------- Run | Yrd Mat Min Mat Min Mat Total 1548 | 49 318 356 666 88 71 Wait 122 | . 25 16 78 3 . Move 1172 | 37 237 322 463 56 57 Hop . | . . . . . . Pick Up 46 | 7 12 3 20 3 1 Fast Attach 4 | 1 3 . . . . Attach 30 | 3 2 6 12 6 1 Detach 1 | 1 . . . . . Swap 15 | . 4 . 6 1 4 Drop 6 | . 6 . . . . Fire 74 | . 28 9 26 10 1 Melee 77 | . . . 61 9 7 Ram . | . . . . . . Kick . | . . . . . . Crush 1 | . 1 . . . . Escape Stasis . | . . . . . . Rewire . | . . . . . . Trap . | . . . . . . Miscellaneous . | . . . . . . Route ------- -11/Scrapyard -10/Materials (discovered 2 exits: *Mat / *Min) -10/Mines (discovered 3 exits: *Mat x2 / [*Exi]) -9/Materials (discovered 2 exits: *Mat / *Min) -9/Mines (discovered 2 exits: *Mat x2) -8/Materials (discovered 1 exit: Fac) History --------- Turn | Location | Event 20 | -11/Scrapyard | Discovered new exit (range 15) 32 | -11/Scrapyard | Entered Materials 310 | -10/Materials | Build established: Mutant 381 | -10/Materials | Discovered new exit (range 16) 549 | -10/Materials | Discovered new exit (range 15) 564 | -10/Materials | Identified exit to Mines 623 | -10/Materials | Entered Mines 633 | -10/Mines | Learned Materials terminal intel 656 | -10/Mines | Discovered new exit (range 7) 792 | -10/Mines | Received a Rocket Launcher from a helpful Derelict 897 | -10/Mines | Found a damaged Exp. Sensor Array with a note attached 901 | -10/Mines | Found Prototype Device 972 | -10/Mines | Deemed a non-threat by the Exiles lab entrance 972 | -10/Mines | Discovered new exit (range 5) 1058 | -10/Mines | Learned Materials interactive machine intel 1378 | -10/Mines | Assembled infested the area 1383 | -10/Mines | Assisted by a Guerilla fighting off Assembled 1405 | -10/Mines | Core integrity fell below 50% 1408 | -10/Mines | Discovered new exit (range 10) 1418 | -10/Mines | Core integrity fell below 20% 1439 | -10/Mines | Entered Materials 1439 | -9/Materials | Evolved 2 slots: Propulsion x1, Utility x1 1440 | -9/Materials | Loaded intel: 18 interactive machine locations 1441 | -9/Materials | Loaded intel: 12 terminal locations 1445 | -9/Materials | Lost 7 parts (1p2n4w) 1927 | -9/Materials | Lost 3 parts (3n) 2098 | -9/Materials | Core integrity fell below 50% 2332 | -9/Materials | Discovered new exit (range 6) 2392 | -9/Materials | Identified exit to Mines 2530 | -9/Materials | Entered Mines 2551 | -9/Mines | Core integrity fell below 20% 2590 | -9/Mines | Lost 6 parts (1p4n1w) 2637 | -9/Mines | Discovered new exit (range 9) 2720 | -9/Mines | Identified exit to Materials 2728 | -9/Mines | Entered Materials 2728 | -8/Materials | Evolved 2 slots: Propulsion x1, Utility x1 2729 | -8/Materials | Identified exit to Factory 2906 | -8/Materials | Crushed by falling debris 2907 | -8/Materials | Self-destructed Last Messages --------------- OROWQZUCK7: Med. Battery KQ4XZM77M0: Minigun UBPOCI3LNX: Field Laser LWC1DPA01L: Imp. Grenade Launcher S7UN4DLSYF: Trap Scanner BZFJCZ0TH8: Autogun 997WUFG8IL: Titanium Leg Downloaded coordinate data. 02810_ K-01 Serf collects debris. 02845_ Acquired Adv. Treads. 02871_ K-01 Serf collects debris. 02885_ U-05 Engineer builds a Wall. 02889_ C-30 ARC bursts open, deploying its payload. 02889_ L-31 Rogue unfolds itself. 02889_ G-47 Trooper unfolds itself. 02902_ G-47 Trooper destroyed. 02903_ U-05 Engineer builds a Wall. 02906_ The unstable cave ceiling collapses. 02906_ Crushed by falling debris. 02906_ Particle Gun crushed. Map ----- +----------------------------------------------------+ | ???# """ # #????????????????????????? | | ?????#####+######+####???????????????????????? | | ??????# #???????????????????????? | | ??????# #???????????????????????? | | ??????# #???????????????????????? | | ??????###### ##### #??????#????????????????? | | ???????#####+##### #????? #????????????????? | | ???????# # #???? #????????????????? | | ???????# # #### #????????????????? | | ???????# # #????????????????? | | ???????# """ + #????????????????? | | ???????# """ "" # #????????????????? | | ???????# """ """ # ########????????????????? | | ???????# S" # #???????????????????????? | | ???????# # #???????????????????????? | | ???????########### #???????????????????????? | | ?????????????????# #???????????????????????? | | ?????????????????# #???????????????????????? | | ????????????????## ##??????????????????????? | | ????????????????# ###+##########?????????? | | ????????????????# !! ??????? | | ????????????????# " ^! ??????? | | ????????????????# !! ??????? | | ????????????????# / ####^ # ???????? | | ????????????????#######???? #?????????? | | ????????????????????#@#????? #?????????? | | ????????????????????###?????? #?????????? | | ????????????????????###??????? #?????????? | | ????????????????????=%%???????? #?????????? | | ???????????????????? " ????????? #?????????? | | ???????????????????"" "????????? ??????????? | | ???????????????????"" "?????????????????????? | | ??????????????????""" ""????????????????????? | | ?????????????????? ????????????????????? | | ????????????????? ???????????????????? | | ?????????????????##+######???????????????????? | | ?????????????????? ?????????????????????????? | | ?????????????????????????????????????????????? | | ?????????????????????????????????????????????? | | ?????????????????????????????????????????????? | | ???????????????????????=?????????????????????? | | ?????????????????????????????????????????????? | | ?????????????????????????????????????????????? | | ?????????????????????????????????????????????? | | ?????????????????????????????????????????????? | | ?????????????????????????????????????????????? | | ?????????????????????????????????????????????? | | ?????????????????????[???????????????????????? | | ?????????????????????????????????????????????? | | ????????[????????????????????????????????????? | +----------------------------------------------------+ Best States ------------- Heat Dissipation 31 Energy Generation 14 Energy Capacity 280 Matter Stores 300 Matter Capacity 300 Sight Range 18 Terrain Scan Density 10 Evasion (%) 50 Targeting Accuracy 5 Recoil Reduction 3 Item Schematics ----------------- None Robot Schematics ------------------ None Fabricated ------------ Nothing Repaired ---------- Nothing Studied --------- Lgt. Treads | -9/Materials | Hacked Imp. Treads | -9/Materials | Hacked Alien Tech Used ----------------- None Achievements -------------- Physics Hates This One Trick Challenges ------------ None Game ------ Seed ChargeCoilRay Manual? 0 Play Time 00:21:34 Cumulative 209.9 hours Start 2026.07.05 @ 13:55:31 End 2026.07.05 @ 15:35:09 Sessions 1 Manual Loads 0 Difficulty Rogue Special Mode None Game No. 332 Rogue 329 Adventurer 3 Explorer 0 Win Type - Total 1 Types 1/0/0/0/0/0/0/0/0/0 Lore% 66 Gallery% 57 Achievement% 29 Wizard Run 0 Options --------- Layout 0 ASCII 0 Keyboard 0 Movement Mouse Keybinds 0 Fullscreen 2 Font 18/SmallcapsGlow Map View 76x50 Zoom Use 0% Tactical HUD 1 Map Filters NONE Filters NONE Steam 1 RUN: 90d891a6-f110-4854-9dbb-64f7fdd14930